bitfinex/quotes_ETHUSD_20260107
["timestamp","ask_amount","ask_price","bid_price","bid_amount"]
[1767821697596,0.90463657,3148.7,3147.3,0.411171]
[1767821697597,0.90463657,3148.6,3147.7,0.93430325]
[1767821697802,0.90463657,3148.6,3147.5,0.834]
[1767821698598,0.002,3147.6,3147.5,0.834]
[1767821698803,0.88971232,3147.9,3147.3,0.411171]
[1767821699024,0.002,3147.9,3147.1,0.93430325]
[1767821699224,0.002,3147.9,3147.2,0.93430325]
[1767821700007,0.002,3147.9,3147.3,0.93430325]
[1767821704108,0.002,3147.9,3147.3,0.96607651]
[1767821704307,0.002,3147.9,3147.4,0.95420468]
[1767821705007,0.002,3147.9,3147.6,0.95420468]
[1767821705703,3.17636475,3148.3,3147.9,0.95420468]
[1767821705910,6.3527295,3148.3,3147.4,0.95420468]
[1767821706113,6.3527295,3148.3,3147.5,0.95420468]
[1767821708813,3.17636475,3148.3,3147.5,0.95420468]
[1767821709801,0.92749944,3148.2,3147.5,0.95420468]
[1767821710003,3.17651005,3148.2,3147.5,0.95420468]
[1767821710398,3.17651005,3148.2,3147.4,0.90440089]
[1767821710697,0.002,3148.0,3147.5,0.90440089]
[1767821711999,3.17862007,3148.0,3147.3,0.90440089]
[1767821712186,4.10611951,3148.0,3147.3,0.90440089]
[1767821712730,7.28273958,3148.0,3147.3,0.90440089]
[1767821712912,1.6557734,3147.9,3147.3,0.90440089]
[1767821713092,0.92749944,3147.8,3147.1,0.90440089]
[1767821714626,0.92749944,3147.8,3147.2,0.90440089]
[1767821714993,3.17673737,3147.9,3147.2,0.90440089]
[1767821715194,4.10423681,3147.9,3147.2,0.90440089]
[1767821715817,4.10423681,3147.9,3147.3,0.90440089]
[1767821716626,0.92749944,3147.9,3147.3,0.90440089]
[1767821721325,4.10425637,3147.9,3147.3,0.90440089]
[1767821721828,0.92749944,3147.9,3147.3,0.90440089]
[1767821722729,0.92749944,3147.9,3147.6,0.001]
[1767821723024,0.92749944,3147.9,3147.3,0.90440089]
[1767821724997,4.10617427,3148.0,3147.3,0.90440089]
[1767821729037,0.92749944,3147.9,3147.3,0.90440089]
[1767821730941,4.10426725,3147.9,3147.3,0.90440089]
[1767821731714,0.92749944,3147.8,3146.9,0.001]
[1767821732613,0.92749944,3147.8,3146.6,0.94434789]
[1767821732914,0.97470465,3147.6,3146.4,4.12252569]
[1767821733112,0.97470465,3147.6,3146.5,0.94434789]
[1767821735151,0.97470465,3147.4,3146.5,0.94434789]
[1767821735337,0.97470465,3147.4,3146.4,3.1781823]
[1767821735528,0.97470465,3147.4,3146.5,0.73007906]
[1767821737853,0.97470465,3147.2,3146.5,3.90819461]
[1767821738031,0.97470465,3147.2,3146.5,4.8525425]
[1767821739552,3.17726255,3147.4,3146.6,0.94434789]
[1767821739754,3.17726255,3147.4,3146.7,0.94434789]
[1767821740853,0.97470465,3147.3,3146.6,0.94434789]
[1767821741153,8.16324573,3147.4,3146.6,0.94434789]
[1767821741354,0.97470465,3147.3,3146.6,0.94434789]
[1767821742764,4.1521322,3147.2,3146.6,0.94434789]
[1767821743345,0.97470465,3147.1,3146.4,0.94434789]
[1767821743528,0.97470465,3147.1,3146.5,0.94434789]
[1767821744837,0.97470465,3147.0,3146.3,0.94434789]
[1767821745852,0.97470465,3147.0,3146.4,0.94434789]
[1767821747261,0.97470465,3147.0,3146.7,0.001]
[1767821747470,0.97470465,3147.0,3146.3,3.1783204]
[1767821747652,0.97470465,3147.0,3146.4,0.31783204]
[1767821748570,0.97470465,3146.9,3146.4,0.31783204]
[1767821748870,0.97470465,3146.9,3146.0,0.94434789]
[1767821749465,0.97470465,3146.7,3146.0,4.12297877]
[1767821749671,0.97470465,3146.7,3146.0,4.85633641]
[1767821752780,0.97470465,3146.9,3146.1,0.94434789]
[1767821755053,4.15248589,3146.9,3146.1,0.94434789]
[1767821756279,4.15248589,3146.9,3146.1,4.12284519]
[1767821756461,4.15248589,3146.9,3146.2,0.94434789]
[1767821757591,0.97470465,3146.8,3146.2,0.94434789]
[1767821759070,0.97470465,3146.8,3146.3,0.001]
[1767821760058,4.15254055,3146.8,3146.3,0.001]
[1767821760780,0.97470465,3146.8,3146.3,0.001]
[1767821761281,4.15253842,3146.8,3146.3,0.001]
[1767821761778,0.97470465,3146.8,3146.3,0.001]
[1767821761962,0.64548365,3146.9,3146.3,0.97716602]
[1767821762161,0.91273717,3146.9,3146.3,0.001]
[1767821762792,3.1776617,3147.0,3146.3,0.97716602]
[1767821762961,4.09039887,3147.0,3146.3,0.97716602]
[1767821764771,0.91273717,3146.8,3145.5,0.97616602]
[1767821764962,0.91273717,3146.8,3145.0,3.78]
[1767821764963,0.91273717,3146.8,3145.4,0.97616602]
[1767821765297,0.91273717,3146.6,3145.4,0.97616602]
[1767821765962,0.91273717,3146.4,3145.2,0.97616602]
[1767821766162,0.91273717,3146.2,3145.2,0.97616602]
[1767821767163,0.91273717,3146.2,3145.4,0.97616602]
[1767821768084,4.0912697,3146.2,3145.4,0.97616602]
[1767821769364,0.99370547,3146.1,3145.4,0.97616602]
[1767821770696,4.17224464,3146.1,3145.7,0.001]
[1767821771070,3.17853917,3146.1,3145.7,0.001]
[1767821772390,3.98883527,3146.2,3145.7,0.001]
[1767821773606,4.98254074,3146.2,3145.7,0.001]
[1767821773794,0.99370547,3146.1,3145.4,0.99766302]
[1767821773997,0.99370547,3146.1,3145.4,0.41770657]
[1767821774301,0.99370547,3146.1,3145.4,1.41536959]
[1767821775304,4.17226136,3146.1,3145.4,1.41536959]
[1767821775506,0.99370547,3146.0,3145.4,1.41536959]
[1767821775965,0.99370547,3146.0,3145.4,0.41770657]
[1767821777503,0.99370547,3146.0,3145.5,0.45947088]
[1767821777805,0.99370547,3146.0,3145.3,0.99766302]
[1767821778308,0.99370547,3146.0,3145.4,0.99766302]
[1767821778498,0.99370547,3146.3,3145.4,0.99766302]
[1767821778673,0.99370547,3146.2,3145.4,4.17689463]
[1767821778872,3.18014768,3146.5,3145.4,4.17689463]
[1767821778873,0.002,3146.5,3145.7,0.99766302]
[1767821779072,4.17384577,3146.5,3145.7,0.99766302]
[1767821779301,0.99370547,3146.4,3145.7,0.99766302]
[1767821780111,0.002,3146.5,3145.9,0.99766302]
[1767821780871,0.002,3146.5,3146.0,0.99766302]
[1767821781072,0.002,3146.5,3146.1,0.41764028]
[1767821781272,0.002,3146.5,3146.0,0.99766302]
[1767821783498,0.002,3146.5,3146.1,0.99766302]
[1767821784199,0.002,3146.5,3145.7,0.001]
[1767821784200,0.99570547,3146.5,3145.7,0.001]
[1767821784706,0.99370547,3146.3,3145.7,0.001]
[1767821785522,4.17214295,3146.2,3145.7,0.001]
[1767821788999,3.17843748,3146.2,3145.7,0.001]
[1767821789219,3.17843748,3146.2,3145.7,0.99866302]
[1767821790234,3.17833645,3146.3,3145.7,0.99866302]
[1767821793508,3.17827405,3146.4,3145.9,0.94196786]
[1767821794800,3.18013443,3146.5,3145.9,0.94196786]
[1767821795504,4.11345411,3146.5,3145.9,0.94196786]
[1767821795935,4.11345411,3146.5,3146.0,0.001]
[1767821796409,7.29158854,3146.5,3146.0,0.001]
[1767821797114,4.11345411,3146.5,3146.0,0.001]
[1767821798333,7.29158854,3146.5,3146.0,0.001]
[1767821800417,0.93331968,3146.4,3145.7,0.001]
[1767821800742,0.93331968,3146.4,3145.3,0.94196786]
[1767821802434,0.93331968,3146.2,3145.3,0.94196786]
[1767821802648,0.93331968,3146.1,3145.3,0.94196786]
[1767821804618,7.29059876,3146.0,3145.3,0.94196786]
[1767821805340,0.93331968,3145.9,3144.9,0.94196786]
[1767821805856,0.93331968,3145.9,3144.8,0.001]
[1767821806334,0.93331968,3145.9,3144.8,0.94296786]
[1767821806746,0.93331968,3145.7,3144.8,0.001]
[1767821806941,0.93331968,3145.5,3144.8,0.001]
[1767821807316,1.11005165,3145.5,3144.8,0.001]
[1767821807930,1.11005165,3145.5,3145.1,0.001]
[1767821808261,4.11256556,3145.4,3145.1,0.001]
[1767821808454,0.93331968,3145.3,3145.1,0.001]
[1767821809051,0.93331968,3145.3,3144.8,0.001]
[1767821809917,3.17924588,3145.4,3144.8,0.94296786]
[1767821810627,3.17911485,3145.6,3145.0,0.94196786]
[1767821811226,4.11243453,3145.6,3145.0,0.94196786]
[1767821811845,7.29154938,3145.6,3145.0,0.94196786]
[1767821812040,0.93331968,3145.5,3144.8,0.94296786]
[1767821812547,3.17924588,3145.4,3144.8,0.94296786]
[1767821814223,0.93331968,3145.4,3144.8,0.94296786]
[1767821814653,0.93331968,3145.4,3144.8,0.001]
[1767821814943,0.93331968,3145.4,3144.5,0.001]
[1767821815137,0.93331968,3145.2,3144.5,0.001]
[1767821816135,0.93331968,3145.0,3144.5,0.001]
[1767821818446,4.11297567,3145.0,3144.5,0.001]
[1767821818951,0.93331968,3144.9,3144.5,0.001]
[1767821820251,3.17965599,3145.0,3144.5,0.001]
[1767821820455,4.11291398,3145.1,3144.5,0.001]
[1767821820765,0.31662535,3145.3,3144.5,0.97476941]
[1767821820927,0.93331968,3145.7,3144.9,0.94196786]
[1767821821127,0.002,3145.1,3144.9,0.94196786]
[1767821821419,1.76731968,3145.6,3144.9,0.94196786]
[1767821821645,1.94405165,3145.6,3144.9,0.94196786]
[1767821822153,0.002,3145.4,3144.9,0.94196786]
[1767821823036,0.002,3145.4,3144.8,0.001]
[1767821823037,0.95069221,3145.4,3144.8,0.001]
[1767821823837,0.95069221,3145.4,3144.8,1.0007758]
[1767821825270,4.12997272,3145.4,3144.8,1.0007758]
[1767821829039,0.002,3145.4,3144.8,1.0007758]
[1767821829366,0.002,3145.4,3145.0,0.9997758]
[1767821831171,0.94869221,3146.0,3145.4,0.9997758]
[1767821831350,0.94869221,3146.4,3145.4,0.9997758]
[1767821831549,0.834,3146.3,3145.4,0.9997758]
[1767821832074,4.01238353,3146.3,3145.4,0.9997758]
[1767821832249,4.01238353,3146.3,3145.5,0.9997758]
[1767821832958,0.834,3146.3,3145.5,0.9997758]
[1767821833776,4.01238133,3146.3,3145.5,0.9997758]
[1767821833976,0.834,3146.3,3145.5,0.9997758]
[1767821834175,0.002,3145.9,3145.5,0.9997758]
[1767821834556,0.002,3145.9,3145.6,0.9997758]
[1767821834758,0.002,3145.9,3145.8,0.9997758]
[1767821837172,0.002,3146.5,3145.9,0.9997758]
[1767821837375,3.18015378,3146.5,3145.9,0.9997758]
[1767821838783,0.002,3146.5,3145.9,0.9997758]
[1767821839283,0.002,3146.5,3145.5,3.17911118]
[1767821839284,0.002,3146.5,3146.1,0.9997758]
[1767821839657,0.002,3146.5,3145.8,0.9997758]
[1767821839856,0.002,3146.5,3146.0,0.9997758]
[1767821847878,0.002,3146.2,3146.0,0.9997758]
[1767821849684,0.002,3146.2,3145.7,0.9997758]
[1767821850265,0.95069221,3146.2,3145.5,0.9997758]
[1767821850667,0.95069221,3146.2,3145.6,0.9997758]
[1767821850867,0.002,3146.2,3145.7,0.9997758]
[1767821851265,0.95069221,3146.2,3145.3,0.9997758]
[1767821851783,0.94869221,3146.0,3145.1,1.0007758]
[1767821853397,4.10721682,3145.9,3145.1,1.0007758]
[1767821854468,4.10721682,3145.9,3145.2,0.92924319]
[1767821856986,7.2873512,3146.2,3145.2,0.92924319]
[1767821857528,0.002,3146.2,3145.3,0.96103665]
[1767821859306,0.002,3146.2,3145.4,0.92924319]
[1767821859604,0.002,3146.2,3145.5,0.001]
[1767821859786,0.002,3146.2,3145.6,0.92924319]
[1767821861387,1.74259681,3146.2,3145.6,0.92924319]
[1767821862205,0.92847624,3146.1,3145.5,0.001]
[1767821862610,0.92847624,3146.1,3145.2,0.92924319]
[1767821864909,0.92847624,3145.9,3145.1,0.001]
[1767821865090,6.35727908,3146.0,3145.1,0.93024319]
[1767821865293,3.17863954,3146.0,3145.1,0.93024319]
[1767821865614,6.35727908,3146.0,3145.1,0.93024319]
[1767821865788,7.16726667,3146.0,3145.1,0.93024319]
[1767821866714,6.35727908,3146.0,3145.1,0.93024319]
[1767821869499,0.92847624,3145.9,3145.1,0.93024319]
[1767821870719,3.17884163,3145.8,3145.1,0.93024319]
[1767821871294,3.17884163,3145.8,3145.4,0.001]
[1767821871487,3.17884163,3145.8,3145.2,0.92924319]
[1767821871703,0.72861006,3145.7,3145.2,0.92924319]
[1767821874222,0.83500001,3145.6,3145.2,0.92924319]
[1767821879538,0.83500001,3145.6,3145.1,0.001]
[1767821879735,0.83500001,3145.6,3145.1,0.93024319]
[1767821882807,3.18048908,3146.2,3145.6,0.96550659]
[1767821883846,0.002,3145.9,3145.6,0.96550659]
[1767821884013,0.002,3145.9,3145.4,0.96650659]
[1767821885338,0.002,3145.9,3145.4,1.38109327]
[1767821887616,0.002,3145.9,3145.4,0.96650659]
[1767821897317,0.002,3145.6,3145.4,0.96650659]
[1767821897522,0.002,3145.9,3145.4,0.96650659]
[1767821908762,0.002,3145.6,3145.4,0.96650659]
[1767821941089,0.002,3145.6,3145.4,0.001]
[1767821942278,0.95048942,3145.6,3145.4,0.001]
[1767821942481,0.002,3145.6,3145.4,0.001]
[1767821952801,0.95048942,3145.6,3145.1,0.001]
[1767821953397,0.002,3145.6,3145.1,0.001]
[1767821953573,0.002,3145.6,3145.1,0.9481737]
[1767821954397,0.41494321,3145.6,3145.1,0.9481737]
[1767821954824,1.36343263,3145.6,3145.1,0.001]
[1767821955678,0.41494321,3145.6,3145.1,0.9481737]
[1767821956121,0.94848942,3145.5,3144.8,0.001]
[1767821957304,0.94848942,3145.5,3144.8,0.9481737]
[1767821958282,0.94848942,3145.4,3144.8,0.9481737]
[1767821963981,0.94848942,3145.4,3144.8,0.001]
[1767821964379,0.95048942,3145.6,3144.8,0.9481737]
[1767821964681,0.3180959,3145.5,3144.8,0.9481737]
[1767821965106,1.26658532,3145.5,3144.8,0.9481737]
[1767821967413,1.26658532,3145.5,3145.1,0.001]
[1767821967709,0.44476494,3145.4,3145.1,0.001]
[1767821967911,0.44676494,3145.4,3145.1,0.001]
[1767821970781,0.44676494,3145.4,3144.8,0.001]
[1767821970782,0.94848942,3145.3,3144.8,0.001]
[1767821971198,0.002,3145.4,3144.8,0.9481737]
[1767821971505,0.95048942,3145.4,3144.8,0.9481737]
[1767821972095,0.002,3145.4,3145.0,0.90793445]
[1767821974686,0.002,3145.4,3145.1,0.90793445]
[1767821978295,0.002,3145.4,3144.9,0.90793445]
[1767821979486,0.002,3145.1,3144.9,0.90793445]
[1767821979693,0.002,3145.1,3144.9,0.40887771]
[1767821982514,0.002,3145.1,3145.0,0.90793445]
[1767821983013,0.002,3145.1,3144.9,0.40887771]
[1767821983603,0.002,3145.1,3144.9,1.31681216]
[1767821983806,0.002,3145.1,3145.0,0.90793445]
[1767821986997,0.002,3145.1,3144.8,0.90893445]
[1767821988028,0.002,3145.1,3144.9,0.90793445]
[1767821991632,0.002,3145.1,3145.0,0.90793445]
[1767821993302,0.002,3145.1,3145.0,4.08758468]
[1767821993498,0.002,3145.6,3145.3,0.90793445]
[1767821993803,0.002,3145.9,3145.4,0.90793445]
[1767821994244,0.002,3145.9,3145.5,4.08707926]
[1767821994534,4.01235866,3146.3,3145.6,0.90793445]
[1767821994535,0.92241853,3146.3,3145.6,0.90793445]
[1767821994737,0.002,3146.5,3145.6,0.90793445]
[1767821996116,0.002,3146.5,3145.8,0.90793445]
[1767821998336,0.002,3146.5,3145.8,4.08673854]
[1767821998544,0.002,3146.5,3145.9,0.90793445]
[1767821998748,0.002,3146.5,3145.9,1.3166083]
[1767822000305,0.002,3146.5,3146.0,0.90793445]
[1767822001515,0.92027541,3146.5,3145.9,0.40867385]
[1767822001721,0.91827541,3146.4,3145.8,0.90793445]
[1767822003136,0.002,3145.9,3145.8,4.08677608]
[1767822003441,0.002,3146.5,3145.8,4.08677608]
[1767822003442,0.002,3146.5,3146.0,0.97455997]
[1767822003735,0.002,3146.5,3146.2,0.97455997]
[1767822003945,0.96417569,3146.5,3145.9,6.35741828]
[1767822004233,0.002,3146.5,3146.1,0.97455997]
[1767822005844,0.002,3146.5,3146.2,0.97455997]
[1767822010041,0.002,3146.5,3146.3,0.97455997]
[1767822010947,0.002,3146.7,3146.3,0.97455997]
[1767822011149,0.002,3147.2,3146.6,0.97455997]
[1767822012019,0.002,3147.2,3146.7,3.17793243]
[1767822012331,0.002,3147.2,3146.8,0.97455997]
[1767822014850,0.002,3146.9,3146.8,0.97455997]
[1767822015027,0.002,3147.2,3146.9,0.97455997]
[1767822019335,0.002,3147.2,3146.8,0.41524761]
[1767822023048,0.002,3147.2,3146.8,4.56761924]
[1767822023246,0.002,3147.2,3146.9,0.97455997]
[1767822024340,0.002,3147.2,3146.8,0.41524761]
[1767822025784,0.002,3147.2,3147.0,0.97455997]
[1767822025978,0.002,3147.3,3147.1,0.97455997]
[1767822026148,0.002,3147.3,3147.1,4.15206193]
[1767822026950,0.002,3147.3,3147.2,0.97455997]
[1767822028779,0.002,3147.5,3147.3,0.97455997]
[1767822028981,0.002,3147.5,3147.4,0.97455997]
[1767822029674,0.002,3147.5,3147.3,0.41837628]
[1767822029883,0.002,3147.5,3147.1,0.97455997]
[1767822030872,0.002,3147.5,3147.1,4.15208101]
[1767822032384,0.002,3147.5,3147.2,0.92728927]
[1767822033260,0.002,3147.6,3147.3,0.92728927]
[1767822033683,0.002,3147.6,3147.3,1.0543999]
[1767822033884,0.002,3147.6,3147.3,1.79533431]
[1767822035080,0.002,3147.6,3147.4,0.92728927]
[1767822038292,0.002,3147.6,3147.4,4.10450922]
[1767822039016,0.002,3147.6,3147.4,0.92728927]
[1767822046090,0.002,3147.6,3147.4,4.10449335]
[1767822046290,0.002,3147.6,3147.4,4.91948903]
[1767822046805,0.002,3147.8,3147.5,0.03177124]
[1767822046964,0.002,3147.8,3147.5,0.95906051]
[1767822047568,0.002,3147.8,3147.5,1.0861671]
[1767822048790,0.002,3147.8,3147.5,4.23143579]
[1767822048997,0.002,3147.8,3147.5,5.05380891]
[1767822050182,0.002,3147.8,3147.5,8.26270485]
[1767822050385,0.002,3147.8,3147.5,8.10382702]
[1767822050709,0.002,3147.8,3147.6,0.12710174]
[1767822051606,0.002,3147.8,3147.6,3.30408705]
[1767822051809,0.002,3147.8,3147.6,0.12710174]
[1767822052489,0.002,3147.8,3147.6,3.30411132]
[1767822055195,0.002,3147.8,3147.6,4.12720809]
[1767822056582,0.002,3147.8,3147.6,4.00010635]
[1767822061917,0.002,3148.3,3147.8,0.96495914]
[1767822062113,0.002,3148.5,3148.1,0.96495914]
[1767822062983,0.90376098,3148.5,3147.9,1.86872012]
[1767822063301,0.90376098,3148.5,3147.9,0.90376098]
[1767822063913,0.90176098,3148.4,3147.7,0.96495914]
[1767822064102,0.90176098,3148.4,3147.8,0.95316012]
[1767822064989,0.90176098,3148.4,3147.8,4.12996947]
[1767822066085,0.90176098,3148.4,3147.8,5.09492861]
[1767822066507,0.90176098,3148.4,3147.8,0.95316012]
[1767822066711,0.90176098,3148.4,3147.4,0.96495914]
[1767822066913,0.90176098,3148.4,3147.8,4.14175303]
[1767822067218,0.002,3148.5,3147.9,0.96495914]
[1767822067391,0.002,3148.5,3147.9,1.38231137]
[1767822067590,0.002,3148.5,3148.0,0.96495914]
[1767822068216,0.97006473,3148.3,3147.6,3.17697457]
[1767822068415,0.97006473,3148.3,3147.7,0.95320252]
[1767822068834,0.97006473,3148.3,3147.6,3.17697457]
[1767822068991,0.97006473,3148.3,3147.6,0.95320252]
[1767822069406,0.97006473,3148.3,3147.4,3.17717002]
[1767822069693,0.97006473,3148.3,3147.5,0.95326309]
[1767822069895,0.97006473,3148.3,3147.3,0.93226823]
[1767822070115,0.97006473,3148.1,3147.4,4.13043448]
[1767822070723,0.97006473,3148.1,3147.4,5.06270271]
[1767822072230,0.97006473,3148.1,3147.4,1.88553132]
[1767822072393,0.97006473,3148.1,3147.4,1.4595572]
[1767822072594,0.97006473,3148.1,3147.4,5.56904192]
[1767822072786,0.002,3148.5,3147.5,0.93226823]
[1767822072997,3.17814239,3148.5,3147.7,0.93226823]
[1767822073620,3.17814239,3148.5,3147.9,0.93326823]
[1767822075531,0.97006473,3148.4,3147.9,0.001]
[1767822076811,0.97006473,3148.3,3147.9,0.001]
[1767822079101,4.96401782,3148.5,3147.9,0.001]
[1767822079504,0.97006473,3148.4,3147.9,0.001]
[1767822080931,0.8178134,3148.5,3148.0,0.93226823]
[1767822081127,0.002,3148.5,3148.0,0.93226823]
[1767822081328,3.17811998,3148.5,3148.0,0.93226823]
[1767822083036,0.002,3148.5,3148.0,0.93226823]
[1767822085245,0.002,3148.2,3148.0,0.93226823]
[1767822086349,0.002,3148.2,3148.1,0.93226823]
[1767822086646,0.002,3148.2,3148.1,1.34325627]
[1767822087723,0.002,3148.5,3148.2,0.93226823]
[1767822089457,0.002,3148.5,3148.3,0.93226823]
[1767822093760,0.002,3148.5,3148.4,0.96608506]
[1767822094079,0.93871906,3149.7,3148.7,0.96608506]
[1767822094257,0.93871906,3149.7,3148.8,0.96608506]
[1767822096249,0.93871906,3149.7,3149.0,0.96608506]
[1767822096647,0.93871906,3149.6,3148.5,0.96608506]
[1767822096843,0.93871906,3149.6,3148.6,0.96608506]
[1767822097043,0.93871906,3149.3,3148.6,4.14205902]
[1767822097372,0.93871906,3149.3,3148.6,0.96608506]
[1767822097571,0.93871906,3149.3,3148.7,0.41738966]
[1767822097939,0.93871906,3149.3,3148.7,1.38347472]
[1767822098140,0.93871906,3149.3,3148.7,0.96608506]
[1767822098680,0.94071906,3149.4,3148.5,0.03176115]
[1767822098889,0.94071906,3149.4,3148.5,4.1421356]
[1767822099941,0.94071906,3149.4,3148.5,0.96608506]
[1767822100575,0.93871906,3149.3,3148.5,0.96608506]
[1767822100739,0.93871906,3149.3,3148.5,4.1421589]
[1767822100939,0.93871906,3149.3,3148.6,0.41421589]
[1767822101162,0.93871906,3149.3,3148.5,0.96608506]
[1767822101366,0.93871906,3149.3,3148.3,4.14232662]
[1767822101742,0.93871906,3149.3,3148.4,4.14229682]
[1767822102164,0.93871906,3149.3,3148.5,0.96608506]
[1767822102940,0.002,3149.4,3148.6,0.96608506]
[1767822103270,0.002,3149.4,3148.6,1.15930207]
[1767822103482,0.002,3149.4,3148.8,0.96608506]
[1767822103782,0.002,3149.4,3149.0,0.96608506]
[1767822104386,0.002,3149.4,3148.6,0.19321701]
[1767822104387,0.94071906,3149.4,3148.6,0.19321701]
[1767822104552,0.94071906,3149.4,3148.7,1.8927264]
[1767822104887,0.002,3149.4,3148.8,0.96608506]
[1767822106079,0.002,3149.4,3148.9,4.14179721]
[1767822106456,0.002,3149.4,3148.9,7.31750936]
[1767822106657,0.002,3149.4,3149.0,0.96608506]
[1767822106964,0.002,3149.4,3149.0,1.697836]
[1767822107649,0.002,3149.4,3149.0,4.87335697]
[1767822107851,0.002,3149.4,3149.0,3.90727191]
[1767822108873,0.94071906,3149.4,3148.7,4.23460065]
[1767822109053,0.94071906,3149.4,3148.7,3.17587425]
[1767822109254,0.94071906,3149.4,3148.6,3.17599284]
[1767822110151,0.002,3149.4,3148.9,3.17569761]
[1767822110475,0.002,3149.4,3148.9,4.87355004]
[1767822110649,0.002,3149.4,3148.9,4.14178267]
[1767822111047,0.002,3149.4,3149.0,0.96608506]
[1767822112844,0.002,3149.4,3149.0,4.14168372]
[1767822113687,0.002,3149.4,3149.0,0.96608506]
[1767822118085,0.002,3149.4,3149.0,4.14168524]
[1767822119285,0.002,3149.4,3149.1,0.96608506]
[1767822120682,0.002,3149.7,3149.2,3.17540962]
[1767822121379,0.002,3149.7,3149.3,0.96608506]
[1767822122085,0.002,3149.7,3149.2,3.17540962]
[1767822125406,0.002,3149.7,3149.2,0.99233356]
[1767822125614,0.002,3149.7,3149.2,1.79984304]
[1767822126983,0.002,3149.7,3149.3,0.99233356]
[1767822127297,0.002,3149.7,3149.2,0.80750948]
[1767822127480,0.90883324,3149.7,3149.1,0.99233356]
[1767822127680,0.90883324,3149.7,3149.1,4.16778715]
[1767822128509,3.17464367,3150.0,3148.9,4.00864166]
[1767822128510,0.90683324,3150.6,3149.7,0.99233356]
[1767822129490,4.08090911,3150.6,3149.8,0.99233356]
[1767822131294,0.90683324,3150.5,3149.8,0.99233356]
[1767822131495,0.90683324,3150.5,3149.9,0.99233356]
[1767822132289,0.002,3150.3,3149.9,0.99233356]
[1767822133505,0.002,3150.3,3150.0,3.17460317]
[1767822133706,0.002,3150.3,3150.0,0.99233356]
[1767822137321,0.002,3150.3,3150.0,4.16689268]
[1767822139318,0.002,3150.3,3150.0,4.94273167]
[1767822143323,0.002,3150.3,3150.0,1.76817255]
[1767822144031,0.002,3150.6,3150.2,0.99233356]
[1767822144530,0.002,3150.7,3150.2,4.16672394]
[1767822144907,0.002,3150.7,3150.2,0.99233356]
[1767822145103,0.90883324,3150.7,3149.8,1.40905534]
[1767822145319,0.002,3150.3,3149.8,0.99233356]
[1767822145625,0.002,3150.3,3149.8,4.16708655]
[1767822146400,0.002,3150.3,3149.8,0.99233356]
[1767822146718,0.90883324,3150.3,3149.6,0.99233356]
[1767822146928,0.90883324,3150.3,3149.7,0.41674071]
[1767822147105,0.90883324,3150.3,3149.6,0.99233356]
[1767822147809,0.90883324,3150.3,3149.6,4.16733695]
[1767822149931,0.90883324,3150.3,3149.7,0.99233356]
[1767822150134,0.002,3150.3,3149.8,1.40906726]
[1767822151434,0.002,3150.3,3149.8,4.58386728]
[1767822152233,0.002,3150.3,3149.9,0.90337896]
[1767822152824,0.002,3150.3,3149.9,0.93512599]
[1767822153136,0.002,3150.3,3150.1,0.90337896]
[1767822157708,0.97221546,3150.3,3150.0,0.77014645]
[1767822157915,0.97221546,3150.3,3149.8,0.4167337]
[1767822158141,0.97221546,3150.3,3149.3,0.90337896]
[1767822158310,0.97221546,3150.3,3149.3,3.175239]
[1767822158637,0.97021546,3150.1,3149.1,4.07887579]
[1767822159335,0.97021546,3150.1,3149.2,3.17540735]
[1767822159622,0.97021546,3150.1,3149.3,0.40787863]
[1767822161342,0.97021546,3149.9,3149.3,0.40787863]
[1767822162251,0.97021546,3149.9,3149.0,3.17556794]
[1767822162448,0.97021546,3149.9,3149.1,3.17548901]
[1767822162618,0.97021546,3149.9,3149.2,3.17538886]
[1767822162817,0.97021546,3149.9,3149.3,0.31753889]
[1767822166341,0.97021546,3149.9,3149.3,1.22091785]
[1767822166732,0.97021546,3149.9,3149.3,4.3962264]
[1767822166933,0.97021546,3149.9,3149.3,1.22091785]
[1767822167658,0.97021546,3149.9,3149.3,0.31753889]
[1767822167856,0.97021546,3149.9,3149.2,3.17537491]
[1767822168351,0.97021546,3149.9,3149.2,4.07875387]
[1767822168947,0.97021546,3149.9,3149.6,0.001]
[1767822172961,4.14492394,3149.9,3149.6,0.001]
[1767822173165,0.97021546,3149.8,3149.6,0.001]
[1767822174141,0.97021546,3149.8,3149.1,4.07881641]
[1767822174764,0.97021546,3149.8,3149.2,4.07876396]
[1767822175461,0.97021546,3149.8,3149.2,0.90337896]
[1767822176068,0.97021546,3150.0,3149.3,0.90337896]
[1767822176270,0.97021546,3150.0,3149.4,1.31125623]
[1767822176977,0.97021546,3150.0,3149.4,4.48645279]
[1767822178069,1.80321546,3150.0,3149.4,4.48645279]
[1767822178445,1.80321546,3150.0,3149.4,1.31125623]
[1767822179572,0.97021546,3149.9,3149.4,0.40787727]
[1767822179870,0.833,3150.0,3149.4,4.48645335]
[1767822180070,0.97221546,3150.3,3149.6,0.90337896]
[1767822180446,0.002,3150.3,3149.7,0.90337896]
[1767822180646,0.002,3150.7,3150.2,0.90337896]
[1767822182469,0.002,3150.7,3150.2,1.31115941]
[1767822184753,0.002,3150.7,3150.3,0.91125562]
[1767822184950,0.00058819,3151.0,3150.4,0.91125562]
[1767822185473,0.00058819,3151.0,3150.6,0.91125562]
[1767822185679,0.00058819,3151.0,3150.7,0.91125562]
[1767822186270,4.92929384,3151.5,3150.7,0.91125562]
[1767822186445,0.002,3151.6,3150.7,0.91125562]
[1767822187053,3.17499908,3151.6,3150.7,0.91125562]
[1767822187258,0.92515719,3151.6,3150.7,0.91125562]
[1767822187550,0.92315719,3151.5,3150.8,0.91125562]
[1767822187752,0.92315719,3151.4,3150.6,4.08519479]
[1767822187959,0.92315719,3151.4,3150.7,3.17389705]
[1767822188157,0.92315719,3151.4,3150.7,4.08515267]
[1767822188357,0.92315719,3151.4,3150.8,3.17377762]
[1767822188671,0.92315719,3151.4,3150.8,0.91125562]
[1767822190887,0.92315719,3151.5,3150.8,0.91125562]
[1767822191786,0.92315719,3151.4,3150.8,0.91125562]
[1767822192678,0.92315719,3151.4,3150.9,0.001]
[1767822192979,0.002,3151.1,3150.9,0.001]
[1767822194582,0.92515719,3151.1,3150.4,0.91125562]
[1767822194784,0.92315719,3151.0,3150.1,0.91125562]